[Event "MCCT Oslo Esports Cup 2022"]
[Site "Oslo"]
[Date "2022.04.20"]
[Round "2.5"]
[White "Duda, Jan-Krzysztof"]
[Black "Giri, Anish"]
[Result "1-0"]
[ECO "A48"]
[WhiteElo "2750"]
[BlackElo "2773"]
[Annotator "TA"]
[PlyCount "101"]
[EventDate "2022.04.14"]
[EventType "tourn"]
[EventCountry "NOR"]
[SourceTitle "playchess.com"]
[Source "ChessBase"]
[SourceQuality "1"]
[TimeControl "300+3"]

{[%evp 12,101,15,15,7,3,12,17,12,9,21,15,18,12,7,0,0,0,0,4,11,12,20,21,53,53,92,93,80,56,101,104,124,136,143,129,136,80,71,64,211,218,210,205,336,283,332,336,334,317,279,302,250,235,447,443,689,642,569,569,692,672,1209,1209,1196,1189,1194,1173,1169,1071,1086,1142,1119,1013,1131,1138,1113,1092,1051,1036,1003,954,12834,12835,12834,12834,12835,12837,12841,12842,29989,29990]} 1. d4 {[%emt 0:00:00]} Nf6 {[%emt 0:00:00]} 2. Nf3 {[%emt 0:00:01]} g6 {[%emt 0:00:01]} 3. Bf4 {[%emt 0:00:00]} Bg7 {[%emt 0:00:01]} 4. e3 {[%emt 0:00:01]} O-O {[%emt 0:00:01]} 5. Be2 {[%emt 0:00:00]} d6 {[%emt 0:00:00]} 6. h3 {[%emt 0:00:02]} Nc6 {[%emt 0:00:02] is now more promising than 6...Nbd7.} 7. O-O {[%emt 0:00:01]} Ne4 {[%emt 0:00:01] A48: 1 d4 Nf6 2 Nf3 g6: Torre, London and Colle Systems.} 8. Bh2 $5 {[%emt 0:00:15][%mdl 4] Exploring less charted territory.} e5 {[%emt 0:00:01]} 9. c3 {[%emt 0:00:15] [#]} a5 $146 {[%emt 0:00:02] The position is equal.} ({Predecessor:} 9... Qe7 10. a4 Kh8 11. Na3 f5 12. Nc4 g5 13. Bd3 Be6 14. dxe5 d5 15. Ncd2 Bg8 {1-0 (60) Benidze,D (2515)-Markus,R (2672) Kocaeli 2017}) 10. Qc2 {[%emt 0:00:15]} Ng5 {[%emt 0:00:02]} 11. Nbd2 {[%emt 0:00:05]} f5 {[%emt 0:00:22]} 12. dxe5 {[%emt 0:00:15]} dxe5 {[%emt 0:00:06]} 13. Rad1 {[%emt 0:00:20]} Kh8 {[%emt 0:00:10]} 14. Bb5 {[%emt 0:00:13]} Na7 {[%emt 0:00:46]} 15. Bc4 {[%emt 0:00:12]} Nxf3+ {[%emt 0:00:09]} 16. Nxf3 {[%emt 0:00:00]} Qe7 {[%emt 0:00:01]} 17. a4 {[%emt 0:00:22]} e4 {[%emt 0:00:03]} 18. Nd4 {[%emt 0:00:04][%cal Bf3d4,Bd4e2,Be2f4][%mdl 32]} Be5 {[%emt 0:00:03]} 19. Bxe5+ {[%emt 0:00:20]} Qxe5 {[%emt 0:00:00]} 20. Qb3 {[%emt 0:00:20] &Bianco is more active.} b6 {[%emt 0:00:11]} 21. Rd2 {[%emt 0:00:16]} Bd7 {[%emt 0:00:23]} 22. Rfd1 $1 {[%emt 0:00:23][%cal Od4f3]} Rae8 {[%emt 0:00:11]} 23. Ne2 {[%emt 0:00:36]} Bc8 {[%emt 0:00:52]} 24. Bf7 {[%emt 0:00:33]} (24. Nf4 $142) 24... Re7 $16 {[%emt 0:00:01]} 25. Rd8 $36 {[%emt 0:00:06][%mdl 2048] White is pushing.} Rxd8 {[%emt 0:00:01] Loses the game.} (25... Qg7 $14 26. Rxf8+ Qxf8) 26. Rxd8+ $18 {[%emt 0:00:01]} Kg7 {[%emt 0:00:01] [#]} 27. Rg8+ $1 {[%emt 0:00:32]} Kh6 {[%emt 0:00:01]} (27... Kf6 $142) 28. Nf4 {[%emt 0:00:29][%cal Rf4g6] And now Nxg6! would win.} Qf6 {[%emt 0:01:48] [#]} 29. Bxg6 {[%emt 0:00:03][%mdl 512]} hxg6 {[%emt 0:00:01]} 30. Rxg6+ {[%emt 0:00:02]} Qxg6 {[%emt 0:00:01]} 31. Nxg6 {[%emt 0:00:00]} Kxg6 {[%emt 0:00:00]} 32. Qg8+ {[%emt 0:00:05]} Kf6 $2 {[%emt 0:00:00]} (32... Rg7 33. Qe8+ Kh7) 33. h4 {[%emt 0:00:09][%cal Bh3h4,Bh4h5,Bh5h6][%mdl 32]} Be6 {[%emt 0:00:03]} (33... Bd7 $142 34. Qg5+ Ke6) 34. Qg5+ {[%emt 0:00:04]} Kf7 {[%emt 0:00:00]} 35. h5 {[%emt 0:00:00]} Kf8 {[%emt 0:00:17]} 36. h6 {[%emt 0:00:07]} Bg8 {[%emt 0:00:01]} 37. Qxf5+ {[%emt 0:00:01]} Ke8 {[%emt 0:00:02]} 38. g4 {[%emt 0:00:05]} Bh7 {[%emt 0:00:01]} 39. Qf6 {[%emt 0:00:03]} Rf7 {[%emt 0:00:21]} 40. Qh8+ {[%emt 0:00:06]} Kd7 {[%emt 0:00:04]} 41. Qd4+ {[%emt 0:00:04]} Ke8 {[%emt 0:00:19]} 42. Qe5+ {[%emt 0:00:01]} Kd7 {[%emt 0:00:13]} 43. Qd5+ {[%emt 0:00:06]} Ke7 {[%emt 0:00:02]} 44. Qb7 {[%emt 0:00:02][%csl LRa7,LRc7]} Kf6 {[%emt 0:00:04]} 45. Qxa7 {[%emt 0:00:03][%mdl 4096] Endgame KQ-KRB} Kg5 {[%emt 0:00:01]} 46. Qa8 {[%emt 0:00:05] Strongly threatening Qd5+.} Kxg4 {[%emt 0:00:02]} 47. Qe8 {[%emt 0:00:02]} Rf6 {[%emt 0:00:13]} 48. Qd7+ {[%emt 0:00:02]} Bf5 {[%emt 0:00:02]} 49. Qxc7 {[%emt 0:00:01]} Kf3 {[%emt 0:00:07]} 50. Kf1 {[%emt 0:00:01][%csl Gf2][%cal Rc7g3]} Bh3+ {[%emt 0:00:10]} 51. Ke1 {[%emt 0:00:01] Weighted Error Value: White=0.04 (flawless) /Black=0.67} 1-0

[Event "MCCT Oslo Esports Cup 2022"]
[Site "Oslo"]
[Date "2022.04.20"]
[Round "2.6"]
[White "Giri, Anish"]
[Black "Duda, Jan-Krzysztof"]
[Result "0-1"]
[ECO "A13"]
[WhiteElo "2773"]
[BlackElo "2750"]
[Annotator "TA"]
[PlyCount "106"]
[EventDate "2022.04.14"]
[EventType "tourn"]
[EventCountry "NOR"]
[SourceTitle "playchess.com"]
[Source "ChessBase"]
[SourceQuality "1"]
[TimeControl "300+3"]

{[%evp 14,105,39,5,14,-23,52,4,51,62,54,22,12,33,42,50,48,10,7,15,15,0,3,-10,3,0,0,0,0,-11,-5,-7,-9,-20,-11,-25,-25,-51,-56,-80,-39,-86,-91,-120,-120,-115,-110,-115,-89,-114,-79,-87,-61,-50,-8,-59,-13,-54,-59,-76,-80,-95,0,0,0,0,0,-78,-15,-25,0,-20,-42,-182,-29,-231,-5,-7,-3,-192,-164,-260,0,-154,0,-370,-300,-288,-279,-587,-153,-29995,-29996,-29999]} 1. Nf3 {[%emt 0:00:00]} Nf6 {[%emt 0:00:00]} 2. c4 {[%emt 0:00:02]} e6 {[%emt 0:00:07]} 3. g3 {[%emt 0:00:03]} d5 {[%emt 0:00:03]} 4. Bg2 {[%emt 0:00:01]} dxc4 {[%emt 0:00:02]} 5. Qa4+ {[%emt 0:00:02]} Nbd7 {[%emt 0:00:02]} 6. Qxc4 {[%emt 0:00:05]} a6 {[%emt 0:00:01]} 7. Qc2 {[%emt 0:00:02]} c5 {[%emt 0:00:04]} 8. Nc3 {[%emt 0:00:04]} Qc7 {[%emt 0:00:12] A13: English Opening: 1...e6.} 9. d4 {[%emt 0:00:01]} b6 {[%emt 0:00:19]} (9... b5 $11) 10. Bf4 $14 {[%emt 0:00:04]} Bd6 {[%emt 0:00:10]} (10... Qa7 $11) 11. Bxd6 {[%emt 0:00:11]} Qxd6 {[%emt 0:00:01]} 12. Ne4 {[%emt 0:00:01] 12.Ne4 is the recent fashion.} Nxe4 {[%emt 0:00:08]} 13. Qxe4 {[%emt 0:00:00]} Ra7 {[%emt 0:00:01] [#]} 14. dxc5 $146 {[%emt 0:00:34]} ({Predecessor:} 14. O-O Bb7 15. dxc5 Qxc5 16. Qf4 O-O 17. Rfc1 Qb5 18. Rc7 Qxb2 19. Qc1 Qxc1+ 20. Raxc1 {1-0 (33) Yu,Y (2704)-Bluebaum,M (2640) Riga 2021}) 14... Nxc5 {[%emt 0:00:00]} 15. Qe5 {[%emt 0:00:20]} Qxe5 {[%emt 0:00:04]} 16. Nxe5 {[%emt 0:00:00]} Bb7 {[%emt 0:00:07]} 17. Bxb7 {[%emt 0:00:16]} Rxb7 {[%emt 0:00:00]} 18. O-O-O {[%emt 0:00:15]} Nd7 {[%emt 0:00:08]} 19. Nd3 {[%emt 0:00:16]} Ke7 {[%emt 0:00:02]} 20. Kb1 {[%emt 0:00:12]} Rc8 {[%emt 0:00:01]} 21. Rd2 {[%emt 0:00:10]} Rbc7 {[%emt 0:00:07]} 22. f3 {[%emt 0:00:04]} a5 {[%emt 0:00:08]} 23. Rhd1 {[%emt 0:00:01]} b5 {[%emt 0:00:11][%cal Bb6b5,Bb5b4,Bb4a3][%mdl 32]} 24. g4 {[%emt 0:00:08]} Nb6 {[%emt 0:00:05]} 25. Nf4 {[%emt 0:00:19]} Nc4 {[%emt 0:00:12]} 26. Rd3 {[%emt 0:00:04]} a4 {[%emt 0:00:13]} 27. g5 {[%emt 0:00:35]} (27. a3 $15) 27... b4 {[%emt 0:00:14]} 28. h4 {[%emt 0:00:26]} a3 {[%emt 0:00:13]} 29. bxa3 {[%emt 0:00:03]} bxa3 {[%emt 0:00:07] ...Nb2 is the strong threat.} 30. Re1 {[%emt 0:00:03]} Rc5 {[%emt 0:00:53]} 31. e4 {[%emt 0:00:27]} g6 {[%emt 0:00:30]} 32. Ne2 {[%emt 0:00:11]} Rb5+ {[%emt 0:00:27]} 33. Ka1 {[%emt 0:00:01]} Rd8 {[%emt 0:00:15]} 34. Rc3 {[%emt 0:00:31] [#]} (34. Rxd8 $11 Kxd8 35. Rd1+ Ke7 36. Rd4) 34... Rb4 {[%emt 0:00:09]} (34... Rb2 $1 $15 35. Nc1 (35. Rxc4 Rxe2 36. Rc7+ Kf8 $17) 35... Nd2) 35. Nc1 {[%emt 0:00:17]} (35. Rb1 $5 {[%cal Rb1b4]} Rdb8 36. Rxb4 Rxb4 37. Nc1 $11) 35... Nd2 $1 {[%emt 0:00:37][%csl Gd2][%cal Rb4b1]} 36. Nd3 {[%emt 0:00:03]} Rb5 {[%emt 0:00:15]} (36... Nxf3 $2 37. Nxb4 Nxe1 38. Nc6+ Kd7 39. Nxd8 Kxd8 40. Kb1 $18) 37. Rxa3 {[%emt 0:00:26] [#]} Rdb8 {[%emt 0:00:07] &Nero is more active.} (37... Rd7 $1 $17 {[%cal Rd7b7] And now ...Rdb7 would win.} 38. Rc3 Nxf3) 38. Ra7+ $11 {[%emt 0:00:07]} Ke8 {[%emt 0:00:02] ( -> ...Rb1+)} (38... Kf8 $5 39. a3 (39. a4 Rb3 40. Ka2 Nc4) 39... Rc8 $11) 39. a3 $1 {[%emt 0:00:07]} (39. a4 Rb3 40. Ka2 Nc4) 39... Rb3 {[%emt 0:00:25]} 40. Nb4 {[%emt 0:00:15]} (40. Ne5 $1 $11 {remains equal.}) 40... Nxf3 {[%emt 0:00:10]} (40... Rxf3 $17 {Strongly threatening ...Nb3+.} 41. Nc6 Rc8) 41. Rc1 {[%emt 0:00:09]} Kf8 {[%emt 0:00:07]} 42. Ka2 {[%emt 0:00:06]} Re3 $36 {[%emt 0:00:02][%mdl 2048] Black has the initiative.} 43. Rd1 {[%emt 0:00:04]} ({Better is} 43. Na6 $15 Re2+ 44. Ka1) 43... Rxe4 $2 {[%emt 0:00:02]} (43... Re2+ $19 44. Ka1 Rc8) 44. Rdd7 $2 {[%emt 0:00:01]} (44. Nc6 $1 $11 Re2+ 45. Ka1) 44... Rf4 $2 {[%emt 0:00:01]} (44... Ne5 $19 45. Na6 Nxd7 46. Nxb8 Nxb8) 45. Nc6 {[%emt 0:00:04]} Rc8 {[%emt 0:00:01]} 46. Nd8 $2 {[%emt 0:00:01]} (46. a4 $11) 46... Ne5 $19 {[%emt 0:00:04]} ({Weaker is} 46... Nxh4 47. Nxe6+ fxe6 48. Rxh7 $11) 47. Rd2 {[%emt 0:00:04]} (47. Nxe6+ $142 fxe6 48. Rxh7 Rf2+ 49. Kb3) 47... Nf3 $2 {[%emt 0:00:07]} ({And not} 47... Rxh4 48. Nxf7 Nc6 49. Rad7 $17) (47... Rb8 $19 48. Nb7 Nc6) 48. Rd1 $2 {[%emt 0:00:02] [#]} ({White should play} 48. Rdd7 $11) 48... Ne5 $2 {[%emt 0:00:01]} ({Stronger than} 48... Nxh4 49. Rdd7 $11) ({Black should try} 48... Rf5 $1 $17 {aiming for ...Ne5.} 49. Nb7 Nxh4) 49. a4 $2 {[%emt 0:00:01][%mdl 8192]} (49. Rd2 $11 {and White is okay.} Rb8 50. Nb7) 49... Rf2+ {[%emt 0:00:01]} 50. Kb3 {[%emt 0:00:01]} Rf3+ {[%emt 0:00:02]} 51. Kb4 $2 {[%emt 0:00:01]} (51. Ka2 {nothing else works.}) 51... Rc4+ $2 {[%emt 0:00:01]} (51... Ke8 $19 {is more deadly.} 52. a5 Rxd8 53. Rxd8+ Kxd8) 52. Kb5 $2 {[%emt 0:00:01]} (52. Ka5 $17 Rc8 53. Ka6) 52... Rb3+ {[%emt 0:00:02]} 53. Ka6 {[%emt 0:00:00]} Rxa4# {[%emt 0:00:01] Weighted Error Value: White=0.68/Black=0.57} 0-1

[Event "MCCT Oslo Esports Cup 2022"]
[Site "Oslo"]
[Date "2022.04.20"]
[Round "3.1"]
[White "Giri, Anish"]
[Black "Carlsen, Magnus"]
[Result "1/2-1/2"]
[ECO "D31"]
[WhiteElo "2773"]
[BlackElo "2864"]
[Annotator "TA"]
[PlyCount "41"]
[EventDate "2022.04.14"]
[EventType "tourn"]
[EventCountry "NOR"]
[SourceTitle "playchess.com"]
[Source "ChessBase"]
[SourceQuality "1"]
[TimeControl "1500+10"]

{[%evp 15,41,0,13,14,10,18,17,-18,37,37,46,57,45,53,46,57,54,45,41,0,9,0,0,0,14,0,7,0]} 1. d4 {[%emt 0:10:00]} d5 {[%emt 0:10:00]} 2. c4 {[%emt 0:00:02]} e6 {[%emt 0:00:02]} 3. Nc3 {[%emt 0:00:03]} c6 {[%emt 0:00:20]} 4. e4 {[%emt 0:00:27]} dxe4 {[%emt 0:00:24]} 5. Nxe4 {[%emt 0:00:00]} Bb4+ {[%emt 0:00:00]} 6. Bd2 {[%emt 0:00:01][%cal Bc1d2,Bd2b4,Bb4c3][%mdl 32]} Qxd4 {[%emt 0:00:02]} 7. Bxb4 {[%emt 0:00:01]} Qxe4+ {[%emt 0:00:05]} 8. Ne2 {[%emt 0:00:04]} Nd7 {[%emt 0:00:48]} 9. Qd6 {[%emt 0:01:31][%mdl 1024] White has compensation. D31: Queen's Gambit Declined: Semi-Slav without ...Nf6 (+ Marshall Gambit and Noteboom) and Exchange Variation lines without ...Nf6.} Qe5 {[%emt 0:02:02]} 10. Qd2 {[%emt 0:03:20]} Ngf6 $1 {[%emt 0:00:07][%cal Bg8f6,Bf6e4,Be4d2][%mdl 32]} 11. O-O-O {[%emt 0:00:20] [#] Black must now prevent f4.} c5 {[%emt 0:04:40]} (11... Ne4 $1 $11 12. Qe3 c5) 12. Bc3 $14 {[%emt 0:00:11]} Ne4 {[%emt 0:00:31]} 13. Bxe5 {[%emt 0:02:45]} ({Much worse is} 13. Qxd7+ Bxd7 14. Bxe5 Nxf2 $11) 13... Nxd2 {[%emt 0:00:03] Pair of Knights!} 14. Bxg7 {[%emt 0:00:02]} Rg8 {[%emt 0:00:01] [#] Hoping for ...Ne4.} 15. Rxd2 {[%emt 0:02:27]} Rxg7 {[%emt 0:00:03] [#]} 16. g3 $146 {[%emt 0:00:03]} ({Predecessor:} 16. Nc3 b6 17. Nb5 Ke7 18. Be2 Bb7 19. Rhd1 Nf6 20. g3 Bc6 21. Nc3 Rgg8 22. f3 {½-½ (44) Gavrish,L (2158)-Molano Lafuente,I (1940) Barcelona 2016}) 16... Ne5 {[%emt 0:00:08]} 17. b3 {[%emt 0:00:42]} Nf3 {[%emt 0:01:26] The position is equal.} 18. Rd3 {[%emt 0:00:09]} Ne5 {[%emt 0:00:01]} 19. Rd2 {[%emt 0:00:00] Strongly threatening Bg2.} Nf3 {[%emt 0:00:02]} 20. Rd3 {[%emt 0:00:04]} Ne5 {[%emt 0:00:01]} 21. Rd2 {[%emt 0:00:00] Weighted Error Value: White=0.08 (flawless) /Black=0.11 (very precise)} 1/2-1/2

[Event "MCCT Oslo Esports Cup 2022"]
[Site "Oslo"]
[Date "2022.04.20"]
[Round "3.1"]
[White "Mamedyarov, Shakhriyar"]
[Black "Hansen, Eric"]
[Result "0-1"]
[ECO "E61"]
[WhiteElo "2771"]
[BlackElo "2606"]
[Annotator "TA"]
[PlyCount "128"]
[EventDate "2022.04.14"]
[EventType "tourn"]
[EventCountry "NOR"]
[SourceTitle "playchess.com"]
[Source "ChessBase"]
[SourceQuality "1"]
[TimeControl "1500+10"]

{[%evp 20,128,8,0,12,-10,0,0,20,19,15,18,36,35,31,31,41,19,29,18,64,0,0,0,0,-10,-10,-37,-40,-66,-46,-85,-45,-75,27,-31,-37,-50,8,10,18,11,4,7,8,0,66,-28,-27,-55,-14,-9,0,0,0,-8,-11,-9,-11,-8,5,2,187,-18,-19,-113,-133,-133,-138,-138,-161,-771,-713,-992,-971,-847,-609,-606,-607,-671,-575,-824,-676,-646,-611,-1188,-1078,-2412,-2706,-2602,-2443,-1007,-967,-1665,-1654,-29988,-1373,-1020,-925,-894,-873,-29990,-868,-810,-775,-754,-727,-29982,-29983,-29983,-521]} 1. d4 {[%emt 0:10:00]} Nf6 {[%emt 0:10:00]} 2. c4 {[%emt 0:00:03]} g6 {[%emt 0:00:21]} 3. Nf3 {[%emt 0:00:16]} Bg7 {[%emt 0:00:03]} 4. e3 {[%emt 0:00:09]} O-O {[%emt 0:00:10]} 5. Be2 {[%emt 0:00:02]} c5 {[%emt 0:01:03]} 6. dxc5 {[%emt 0:00:35]} Na6 {[%emt 0:00:19]} 7. Nc3 {[%emt 0:00:18]} Nxc5 {[%emt 0:00:03]} 8. O-O {[%emt 0:00:09]} d6 {[%emt 0:00:07]} 9. Nd4 {[%emt 0:00:50]} Bd7 {[%emt 0:00:07]} 10. b3 {[%emt 0:00:25]} Rc8 {[%emt 0:00:48]} 11. Bb2 {[%emt 0:00:12]} a6 {[%emt 0:01:37]} 12. h3 {[%emt 0:00:30]} Qc7 {[%emt 0:00:17]} 13. Rc1 {[%emt 0:00:43]} Qb8 {[%emt 0:00:03]} 14. b4 {[%emt 0:02:36]} Ne6 {[%emt 0:00:25]} 15. Nb3 {[%emt 0:01:30]} b5 {[%emt 0:01:14]} 16. cxb5 $1 {[%emt 0:00:04]} axb5 {[%emt 0:00:00]} 17. Qd3 {[%emt 0:00:38]} Nc7 {[%emt 0:00:30]} 18. a3 {[%emt 0:01:18]} Rfd8 {[%emt 0:02:09]} 19. Rfd1 {[%emt 0:00:51]} d5 {[%emt 0:02:10]} (19... e5 $11 {should be considered.}) 20. Nc5 {[%emt 0:00:58]} (20. Qb1 $1 $14) 20... Bc6 $11 {[%emt 0:00:03]} 21. Nb3 {[%emt 0:02:38]} e5 {[%emt 0:02:18]} 22. Bf1 {[%emt 0:00:00]} Nfe8 {[%emt 0:00:58]} 23. Na5 {[%emt 0:00:17]} Ba8 $1 {[%emt 0:00:01]} 24. Nb1 {[%emt 0:02:20]} ({But not} 24. Nxb5 e4 25. Qe2 Bxb2 26. Qxb2 Nxb5 $17) 24... Nd6 {[%emt 0:00:06]} 25. Nd2 {[%emt 0:00:01]} Nc4 {[%emt 0:00:08]} 26. Qb1 {[%emt 0:00:06]} Ne6 {[%emt 0:00:42]} (26... Nxb2 $17 27. Qxb2 d4) 27. Naxc4 {[%emt 0:00:13]} ({White should try} 27. Ndxc4 $11 dxc4 28. Rxd8+ Nxd8 29. a4) 27... bxc4 $15 {[%emt 0:01:48]} 28. e4 {[%emt 0:00:04]} dxe4 {[%emt 0:00:15]} (28... Nf4 $1 $15) 29. Nxc4 $11 {[%emt 0:00:43]} Nd4 {[%emt 0:00:05]} 30. Ne3 {[%emt 0:00:20]} f5 {[%emt 0:00:02]} 31. Rxc8 {[%emt 0:00:24]} Qxc8 {[%emt 0:00:01]} 32. Nc4 {[%emt 0:00:18]} Qe6 {[%emt 0:00:23]} (32... Qd7 $11 33. Rc1 Rb8) 33. Na5 {[%emt 0:00:41]} (33. a4 $14) 33... Bd5 {[%emt 0:00:35]} 34. b5 {[%emt 0:00:14]} Ra8 {[%emt 0:00:43]} 35. Bc3 {[%emt 0:00:14]} f4 {[%emt 0:00:01]} 36. Re1 {[%emt 0:00:03]} Rc8 {[%emt 0:00:33]} 37. b6 {[%emt 0:00:19]} Rxc3 {[%emt 0:00:16]} 38. b7 {[%emt 0:00:01]} Bxb7 $1 {[%emt 0:00:00]} 39. Qxb7 {[%emt 0:00:02]} e3 {[%emt 0:00:05]} (39... Rxa3 $2 40. Bc4 $1 Bf6 41. Qc8+ Kg7 42. Bxe6 $18) 40. fxe3 {[%emt 0:00:02]} fxe3 $2 {[%emt 0:00:01]} (40... Nc2 $1 $11 41. Rc1 e4) 41. Rxe3 $2 {[%emt 0:00:02]} (41. Qb4 $1 $18 {[%cal Rb4c3]} e4 42. Bc4 (42. Qxc3 Nf3+ 43. gxf3 Bxc3 $11) 42... Rxc4 43. Qxc4) 41... Rc1 $11 {[%emt 0:00:24]} (41... Rxe3 $2 42. Bc4 Re1+ 43. Kf2 Re2+ 44. Kf1 $18) 42. Qb2 {[%emt 0:00:11]} (42. Nb3 $11 {keeps the balance.} Bh6 43. Rd3 Rxf1+ 44. Kxf1 Qf5+ 45. Ke1 Qxd3 46. Qd5+ Kf8 47. Qd8+ Kg7 48. Qe7+ Kg8 49. Qd8+ Kf7 50. Qd7+ Kf6 51. Qd6+ Kf7 52. Qd7+ Kf6 53. Qd6+ Kf7 54. Qd7+) 42... Qc8 $17 {[%emt 0:00:07]} 43. Nb3 {[%emt 0:00:27]} Rc2 {[%emt 0:00:11]} 44. Qb1 {[%emt 0:00:01]} Nf5 {[%emt 0:00:21]} ({Weaker is} 44... Qf5 45. Qe1 Qf4 46. Nxd4 Qxd4 47. Kh1 $11) 45. Rd3 $2 {[%emt 0:00:23]} (45. Re2 Rc3 46. Qe4) 45... e4 $19 {[%emt 0:00:11]} 46. Rd5 {[%emt 0:00:08]} Bh6 {[%emt 0:00:24]} 47. Rxf5 {[%emt 0:00:27]} gxf5 {[%emt 0:00:03]} 48. Qd1 {[%emt 0:00:01]} Kh8 {[%emt 0:00:14]} 49. Kh1 {[%emt 0:00:04]} Rc3 {[%emt 0:00:06]} 50. a4 {[%emt 0:00:04]} Qb8 {[%emt 0:00:10]} 51. Bb5 {[%emt 0:00:07]} Bg7 {[%emt 0:00:05]} 52. Nc1 {[%emt 0:00:20]} h6 {[%emt 0:00:18]} 53. Ne2 {[%emt 0:00:10]} Ra3 {[%emt 0:00:01]} 54. Qd7 {[%emt 0:00:08]} Ra1+ {[%emt 0:00:04]} 55. Ng1 {[%emt 0:00:01]} Qe5 {[%emt 0:00:27]} 56. Qc8+ {[%emt 0:00:14]} Kh7 {[%emt 0:00:02]} 57. Bc4 {[%emt 0:00:01] [#]} h5 {[%emt 0:00:22]} (57... Rxg1+ $142 $1 {[%mdl 512]} 58. Kxg1 Qd4+ 59. Kh1 Qd1+ 60. Kh2 Be5+ 61. g3 Qd2+ 62. Kh1 Qe1+ 63. Bf1 Qxf1+ 64. Kh2 Qf2+ 65. Kh1 Qf3+ 66. Kg1 Bd4+ 67. Kh2 Qf2+ 68. Kh1 Qg1#) 58. h4 $19 {[%emt 0:00:23]} Qf6 {[%emt 0:00:28]} 59. g3 {[%emt 0:00:03]} Qe5 {[%emt 0:00:11]} 60. Kg2 {[%emt 0:00:04] [#]} f4 {[%emt 0:00:11]} (60... Rxg1+ $142 $1 {[%mdl 512]} 61. Kxg1 Qxg3+ 62. Kf1 Qf3+ 63. Kg1 Bd4+ 64. Kh2 Qf4+ 65. Kh1 Qxh4+ 66. Kg2 Qg4+ 67. Kh2 Be5+ 68. Kh1 Qh3+ 69. Kg1 Bd4#) 61. gxf4 $19 {[%emt 0:00:06]} Qxf4 {[%emt 0:00:02]} 62. Qg8+ {[%emt 0:00:22]} Kh6 {[%emt 0:00:02]} 63. Be2 {[%emt 0:00:11]} Ra3 {[%emt 0:00:16]} 64. Qe6+ {[%emt 0:00:20]} Bf6 {[%emt 0:00:02]} (64... Kh7 $142 65. Qh3 Rxh3 66. Nxh3 Qxh4 67. Nf2 Be5 68. Bd1 Qh2+ 69. Kf1 e3 70. Ne4 Bg3 71. Ng5+ Kg6 72. Nh3 e2+ 73. Bxe2 Qxh3+ 74. Kg1 Qh2+ 75. Kf1 Qh1#) 0-1

[Event "MCCT Oslo Esports Cup 2022"]
[Site "Oslo"]
[Date "2022.04.20"]
[Round "3.1"]
[White "Van Foreest, Jorden"]
[Black "Duda, Jan-Krzysztof"]
[Result "0-1"]
[ECO "C49"]
[WhiteElo "2714"]
[BlackElo "2750"]
[Annotator "TA"]
[PlyCount "92"]
[EventDate "2022.04.14"]
[EventType "tourn"]
[EventCountry "NOR"]
[SourceTitle "playchess.com"]
[Source "ChessBase"]
[SourceQuality "1"]
[TimeControl "1500+10"]

{[%evp 12,92,18,0,10,8,0,0,7,-6,0,-13,-7,-12,6,0,0,-18,-18,-18,-21,-21,-17,-27,-20,-27,-14,-25,-34,-59,-54,-50,-54,-61,-53,-47,-47,-40,-54,-40,-13,-25,-25,-72,-75,-106,-74,-87,-75,-79,-85,-80,-80,-73,-76,-68,-58,-135,-118,-283,-268,-275,-268,-253,-260,-257,-239,-398,-402,-422,-394,-433,-428,-426,-425,-490,-494,-627,-505,-529,-526,-516,-493]} 1. e4 {[%emt 0:10:00]} e5 {[%emt 0:10:00]} 2. Nf3 {[%emt 0:00:05]} Nc6 {[%emt 0:00:02]} 3. Nc3 {[%emt 0:00:06]} Nf6 {[%emt 0:00:04][%cal Bg8f6,Bf6d7,Bd7c5][%mdl 32]} 4. Bb5 {[%emt 0:00:03]} Bb4 {[%emt 0:00:15]} 5. O-O {[%emt 0:00:17]} O-O {[%emt 0:00:09]} 6. Bxc6 {[%emt 0:00:07]} dxc6 {[%emt 0:00:11]} 7. d3 {[%emt 0:00:05]} Nd7 {[%emt 0:01:07] C49: Four Knights: 4 Bb5 Bb4.} 8. Bg5 {[%emt 0:00:30]} f6 {[%emt 0:00:32]} 9. Be3 {[%emt 0:00:09]} Re8 {[%emt 0:00:13] [#] The position is equal.} 10. a3 $146 {[%emt 0:01:03]} ({Predecessor:} 10. Nh4 Nf8 11. Qf3 Ne6 12. Ne2 Bf8 13. Rad1 c5 14. c3 Qe7 15. Qg3 Qf7 16. f4 exf4 17. Nxf4 Nxf4 18. Bxf4 {0-1 (49) Nandhidhaa,P (2365)-Iskandarov,M (2533) Belgrade 2021}) 10... Bf8 {[%emt 0:00:47]} 11. Nd2 {[%emt 0:01:37]} Nc5 {[%emt 0:00:22]} 12. Ne2 {[%emt 0:00:01]} (12. Qh5 {looks sharper.} Ne6 13. Rae1 b6 14. Ne2) 12... Bg4 {[%emt 0:00:22]} 13. f3 {[%emt 0:00:03]} Bh5 {[%emt 0:00:01]} 14. Qe1 {[%emt 0:00:06]} Ne6 {[%emt 0:00:16]} 15. Qf2 {[%emt 0:00:52]} c5 {[%emt 0:00:15]} 16. a4 {[%emt 0:03:40]} b6 {[%emt 0:00:40]} 17. b3 {[%emt 0:00:16]} Qd7 {[%emt 0:00:57]} 18. h3 {[%emt 0:01:35]} a6 {[%emt 0:00:39]} 19. Qh4 {[%emt 0:02:03]} Bf7 {[%emt 0:00:30]} 20. f4 {[%emt 0:00:03]} exf4 {[%emt 0:00:26]} 21. Nxf4 {[%emt 0:00:18]} Nd4 $1 {[%emt 0:00:04]} 22. Bxd4 {[%emt 0:00:45]} Qxd4+ {[%emt 0:00:27]} 23. Qf2 {[%emt 0:00:01]} Qc3 {[%emt 0:01:21]} 24. Nc4 {[%emt 0:01:09]} b5 {[%emt 0:00:11]} 25. Ne3 {[%emt 0:00:01]} c6 {[%emt 0:00:52] Inhibits Nfd5.} 26. Kh1 {[%emt 0:00:24]} c4 {[%emt 0:01:38]} 27. Ne2 {[%emt 0:00:20]} (27. bxc4 $11 {feels stronger.} bxc4 28. Qg3) 27... Qe5 $17 {[%emt 0:00:21]} 28. Ng4 {[%emt 0:00:07]} Qc7 {[%emt 0:00:28]} 29. bxc4 {[%emt 0:00:59]} bxc4 {[%emt 0:00:00]} 30. Ng3 {[%emt 0:00:16]} h5 {[%emt 0:01:45]} 31. Ne3 {[%emt 0:00:13]} cxd3 {[%emt 0:00:03]} 32. cxd3 {[%emt 0:00:00]} Rad8 {[%emt 0:00:01]} 33. Rad1 {[%emt 0:00:16]} Qe5 {[%emt 0:00:17]} 34. Nef5 {[%emt 0:00:16] [#]} ({White should try} 34. Qf3 $15) 34... c5 $1 {[%emt 0:00:03]} 35. Qf3 $2 {[%emt 0:00:10] White does not recover from this.} (35. Rfe1 $17) 35... g6 $19 {[%emt 0:00:32]} 36. Qe3 {[%emt 0:02:07]} gxf5 {[%emt 0:00:39]} 37. Rxf5 {[%emt 0:00:00]} Qd4 {[%emt 0:00:08]} 38. Qf3 {[%emt 0:00:07]} Bg7 {[%emt 0:00:06] Strongly threatening ...c4.} ({Weaker is} 38... Qxa4 39. Rxf6 Qb3 40. Nxh5 Bxh5 41. Qxh5 $11) 39. Rf4 $2 {[%emt 0:00:53]} (39. Nxh5 Bxh5 40. Qxh5) 39... Bg6 {[%emt 0:00:17]} 40. Nxh5 {[%emt 0:00:07]} Bxh5 {[%emt 0:00:32]} 41. Qxh5 {[%emt 0:00:00]} Re5 {[%emt 0:00:37] Black is clearly winning.} 42. Qg4 {[%emt 0:00:07]} c4 {[%emt 0:00:12]} 43. Rb1 {[%emt 0:00:19] [#] Hoping for Rb7.} Qxd3 {[%emt 0:00:24]} 44. Rbf1 {[%emt 0:00:40]} Qd7 {[%emt 0:01:18] Threatens to win with ...Qxg4.} 45. Qg3 {[%emt 0:00:12]} Rg5 {[%emt 0:00:12]} 46. Qf2 {[%emt 0:00:20]} Qd2 {[%emt 0:00:05] Weighted Error Value: White=0.25 (precise) /Black=0.06 (flawless)} 0-1